[Event "Masters Tournament (MTO)"]
[Site "Biel, Switzerland"]
[Date "2026.07.21"]
[Round "8.14"]
[White "Sasikiran, Krishnan"]
[Black "Hasenohr, Benedict"]
[Result "1-0"]
[TimeControl "100+30+30sec/move"]
[WhiteTitle "-"]
[BlackTitle "-"]
[WhiteFideId "5004985"]
[BlackFideId "1303309"]
[WhiteElo "2546"]
[BlackElo "2247"]

1. Nf3 {[%clk 01:40:51]} {[%emt 00:00:08]} d5 {[%clk 01:40:54]} {[%emt
00:00:07]} 2. g3 {[%clk 01:41:11]} {[%emt 00:00:10]} c6 {[%clk 01:40:54]}
{[%emt 00:00:30]} 3. Bg2 {[%clk 01:41:22]} {[%emt 00:00:19]} Bf5 {[%clk
01:39:59]} {[%emt 00:01:26]} 4. O-O {[%clk 01:41:13]} {[%emt 00:00:39]} Nd7
{[%clk 01:38:52]} {[%emt 00:01:37]} 5. c4 {[%clk 01:40:33]} {[%emt 00:01:10]}
e6 {[%clk 01:32:48]} {[%emt 00:06:34]} 6. cxd5 {[%clk 01:35:04]} {[%emt
00:05:59]} exd5 {[%clk 01:33:05]} {[%emt 00:00:12]} 7. d3 {[%clk 01:34:08]}
{[%emt 00:01:27]} Be7 {[%clk 01:31:43]} {[%emt 00:01:52]} 8. e4 {[%clk
01:26:18]} {[%emt 00:08:21]} dxe4 {[%clk 01:27:50]} {[%emt 00:04:23]} 9. Nd4
{[%clk 01:25:50]} {[%emt 00:00:57]} Bg6 {[%clk 01:28:12]} {[%emt 00:00:09]} 10.
dxe4 {[%clk 01:26:08]} {[%emt 00:00:11]} Ngf6 {[%clk 01:27:30]} {[%emt
00:01:12]} 11. Nc3 {[%clk 01:23:37]} {[%emt 00:03:01]} O-O {[%clk 01:25:49]}
{[%emt 00:02:11]} 12. Qe2 {[%clk 01:19:42]} {[%emt 00:04:25]} Re8 {[%clk
01:24:26]} {[%emt 00:01:53]} 13. Rd1 {[%clk 01:14:25]} {[%emt 00:05:47]} Bb4
{[%clk 01:19:30]} {[%emt 00:05:27]} 14. f3 {[%clk 01:07:44]} {[%emt 00:07:10]}
Qe7 {[%clk 01:08:57]} {[%emt 00:11:03]} 15. Be3 {[%clk 01:03:38]} {[%emt
00:04:36]} a5 {[%clk 01:07:25]} {[%emt 00:02:03]} 16. Rac1 {[%clk 01:02:17]}
{[%emt 00:01:50]} a4 {[%clk 01:05:12]} {[%emt 00:02:43]} 17. a3 {[%clk
00:59:53]} {[%emt 00:02:54]} Bc5 {[%clk 00:56:39]} {[%emt 00:09:04]} 18. Bf2
{[%clk 00:49:43]} {[%emt 00:10:39]} Bb6 {[%clk 00:36:37]} {[%emt 00:20:31]} 19.
h3 {[%clk 00:33:49]} {[%emt 00:16:24]} Nc5 {[%clk 00:31:23]} {[%emt 00:05:45]}
20. Re1 {[%clk 00:31:57]} {[%emt 00:02:22]} Nfd7 {[%clk 00:28:02]} {[%emt
00:03:51]} 21. f4 {[%clk 00:30:13]} {[%emt 00:02:13]} f6 {[%clk 00:27:57]}
{[%emt 00:00:36]} 22. h4 {[%clk 00:29:29]} {[%emt 00:01:15]} Kh8 {[%clk
00:24:38]} {[%emt 00:03:48]} 23. Rcd1 {[%clk 00:28:10]} {[%emt 00:01:49]} Nb3
{[%clk 00:18:56]} {[%emt 00:06:12]} 24. h5 {[%clk 00:22:39]} {[%emt 00:06:01]}
Nxd4 {[%clk 00:18:55]} {[%emt 00:00:32]} 25. Bxd4 {[%clk 00:22:22]} {[%emt
00:00:46]} Bf7 {[%clk 00:18:23]} {[%emt 00:01:02]} 26. h6 {[%clk 00:21:24]}
{[%emt 00:01:28]} Bb3 {[%clk 00:18:15]} {[%emt 00:00:38]} 27. Rd2 {[%clk
00:19:37]} {[%emt 00:02:17]} gxh6 {[%clk 00:16:52]} {[%emt 00:01:53]} 28. Qf2
{[%clk 00:15:49]} {[%emt 00:04:17]} Bxd4 {[%clk 00:16:26]} {[%emt 00:00:58]} 29.
Rxd4 {[%clk 00:16:13]} {[%emt 00:00:06]} Rad8 {[%clk 00:15:52]} {[%emt
00:01:04]} 30. Re2 {[%clk 00:15:44]} {[%emt 00:00:58]} Nc5 {[%clk 00:15:36]}
{[%emt 00:00:46]} 31. e5 {[%clk 00:14:37]} {[%emt 00:01:37]} Ne6 {[%clk
00:10:37]} {[%emt 00:05:29]} 32. exf6 {[%clk 00:10:33]} {[%emt 00:04:34]} Qxf6
{[%clk 00:10:47]} {[%emt 00:00:20]} 33. Rde4 {[%clk 00:10:34]} {[%emt
00:00:29]} Rg8 {[%clk 00:09:24]} {[%emt 00:01:53]} 34. Re5 {[%clk 00:09:07]}
{[%emt 00:01:57]} Nd4 {[%clk 00:08:39]} {[%emt 00:01:16]} 35. Rd2 {[%clk
00:08:24]} {[%emt 00:01:12]} Nf5 {[%clk 00:08:23]} {[%emt 00:00:47]} 36. Ne4
{[%clk 00:06:59]} {[%emt 00:01:54]} Qg6 {[%clk 00:08:05]} {[%emt 00:00:47]} 37.
Rxd8 {[%clk 00:05:44]} {[%emt 00:01:45]} Rxd8 {[%clk 00:08:30]} {[%emt
00:00:05]} 38. Bh3 {[%clk 00:05:42]} {[%emt 00:00:32]} Rd1+ {[%clk 00:04:51]}
{[%emt 00:04:11]} 39. Kh2 {[%clk 00:05:27]} {[%emt 00:00:45]} Nd4 {[%clk
00:04:28]} {[%emt 00:00:53]} 40. g4 {[%clk 00:04:42]} {[%emt 00:01:14]} Bd5
{[%clk 00:02:44]} {[%emt 00:02:14]} 41. f5 {[%clk 00:00:44]} {[%emt 00:04:28]}
Qg8 {[%clk 00:27:25]} {[%emt 00:05:48]} 42. Kg2 {[%clk 00:17:16]} {[%emt
00:13:59]} h5 {[%clk 00:18:07]} {[%emt 00:09:48]} 43. Qh4 {[%clk 00:09:14]}
{[%emt 00:08:32]} hxg4 {[%clk 00:16:27]} {[%emt 00:02:10]} 44. Qf6+ {[%clk
00:07:12]} {[%emt 00:02:32]} Qg7 {[%clk 00:16:51]} {[%emt 00:00:06]} 45. Re8+
{[%clk 00:06:25]} {[%emt 00:01:17]} Bg8 {[%clk 00:17:14]} {[%emt 00:00:06]} 46.
Qxg7+ {[%clk 00:02:57]} {[%emt 00:03:59]} Kxg7 {[%clk 00:17:38]} {[%emt
00:00:05]} 47. f6+ {[%clk 00:03:14]} {[%emt 00:00:14]} Kf7 {[%clk 00:11:05]}
{[%emt 00:07:03]} 48. Re7+ {[%clk 00:03:12]} {[%emt 00:00:31]} Kf8 {[%clk
00:11:24]} {[%emt 00:00:11]} 49. Bxg4 {[%clk 00:03:38]} {[%emt 00:00:05]} Re1
{[%clk 00:11:10]} {[%emt 00:00:45]} 50. Kf2 {[%clk 00:03:52]} {[%emt 00:00:15]}
Rh1 {[%clk 00:11:03]} {[%emt 00:00:36]} 51. Nd6 {[%clk 00:03:46]} {[%emt
00:00:36]} 1-0

[Event "Masters Tournament (MTO)"]
[Site "Biel, Switzerland"]
[Date "2026.07.21"]
[Round "8.15"]
[White "Schnell, Simon"]
[Black "Haimovich, Tal"]
[Result "1/2-1/2"]
[TimeControl "100+30+30sec/move"]
[WhiteTitle "-"]
[BlackTitle "-"]
[WhiteFideId "1345311"]
[BlackFideId "2801698"]
[WhiteElo "2211"]
[BlackElo "2310"]

1. d4 {[%clk 01:40:57]} {[%emt 00:00:03]} Nf6 {[%clk 01:40:55]} {[%emt
00:00:05]} 2. c4 {[%clk 01:41:22]} {[%emt 00:00:05]} e6 {[%clk 01:41:21]}
{[%emt 00:00:05]} 3. Nc3 {[%clk 01:41:46]} {[%emt 00:00:04]} Bb4 {[%clk
01:41:46]} {[%emt 00:00:05]} 4. e3 {[%clk 01:42:12]} {[%emt 00:00:05]} O-O
{[%clk 01:41:57]} {[%emt 00:00:18]} 5. Bd3 {[%clk 01:42:37]} {[%emt 00:00:04]}
d5 {[%clk 01:41:53]} {[%emt 00:00:35]} 6. cxd5 {[%clk 01:42:57]} {[%emt
00:00:10]} exd5 {[%clk 01:41:40]} {[%emt 00:00:43]} 7. Nge2 {[%clk 01:43:14]}
{[%emt 00:00:13]} Re8 {[%clk 01:40:03]} {[%emt 00:02:07]} 8. Bd2 {[%clk
01:43:38]} {[%emt 00:00:06]} Nc6 {[%clk 01:37:53]} {[%emt 00:02:41]} 9. O-O
{[%clk 01:33:56]} {[%emt 00:10:11]} a6 {[%clk 01:34:34]} {[%emt 00:03:49]} 10.
f3 {[%clk 01:30:04]} {[%emt 00:04:22]} Bd6 {[%clk 01:19:48]} {[%emt 00:15:16]}
11. a3 {[%clk 01:23:37]} {[%emt 00:06:57]} Be6 {[%clk 01:11:09]} {[%emt
00:09:09]} 12. Qc2 {[%clk 01:21:38]} {[%emt 00:02:29]} g6 {[%clk 01:08:23]}
{[%emt 00:03:15]} 13. Kh1 {[%emt 00:06:01]} Nh5 {[%clk 01:05:54]} 14. Be1
{[%clk 01:09:13]} {[%emt 00:10:24]} Qg5 {[%clk 00:53:34]} {[%emt 00:12:49]} 15.
f4 {[%clk 00:57:46]} {[%emt 00:11:57]} Qh6 {[%clk 00:53:05]} {[%emt 00:00:59]}
16. Kg1 {[%clk 00:46:52]} {[%emt 00:11:25]} Ne7 {[%clk 00:41:45]} {[%emt
00:11:50]} 17. Bd2 {[%clk 00:44:36]} {[%emt 00:02:46]} Nf6 {[%clk 00:38:55]}
{[%emt 00:03:19]} 18. Ng3 {[%clk 00:40:47]} {[%emt 00:04:19]} Qh4 {[%clk
00:36:13]} {[%emt 00:03:12]} 19. Rf3 {[%clk 00:33:16]} {[%emt 00:08:02]} Rad8
{[%clk 00:28:08]} {[%emt 00:08:36]} 20. h3 {[%clk 00:25:23]} {[%emt 00:08:22]}
c6 {[%clk 00:23:20]} {[%emt 00:05:18]} 21. Nce2 {[%clk 00:23:01]} {[%emt
00:02:51]} Bc8 {[%clk 00:20:10]} {[%emt 00:03:41]} 22. Raf1 {[%clk 00:22:19]}
{[%emt 00:01:11]} Nh5 {[%clk 00:17:51]} {[%emt 00:02:49]} 23. Be1 {[%clk
00:18:34]} {[%emt 00:04:15]} Nxg3 {[%clk 00:17:42]} {[%emt 00:00:39]} 24. Nxg3
{[%clk 00:18:53]} {[%emt 00:00:10]} Qh6 {[%clk 00:15:21]} {[%emt 00:02:51]} 25.
f5 {[%clk 00:16:20]} {[%emt 00:03:04]} Bxg3 {[%clk 00:12:53]} {[%emt 00:02:58]}
26. Rxg3 {[%clk 00:13:30]} {[%emt 00:03:20]} Kh8 {[%clk 00:12:45]} {[%emt
00:00:38]} 27. Bd2 {[%clk 00:10:43]} {[%emt 00:03:17]} Qh4 {[%clk 00:10:41]}
{[%emt 00:02:34]} 28. Rg4 {[%clk 00:07:54]} {[%emt 00:03:19]} Qh5 {[%clk
00:11:09]} {[%emt 00:00:02]} 29. f6 {[%clk 00:07:39]} {[%emt 00:00:46]} Nf5
{[%clk 00:10:24]} {[%emt 00:01:14]} 30. Re1 {[%clk 00:04:45]} {[%emt 00:03:24]}
Nd6 {[%clk 00:08:11]} {[%emt 00:02:44]} 31. Rf4 {[%clk 00:04:40]} {[%emt
00:00:34]} g5 {[%clk 00:06:31]} {[%emt 00:02:11]} 32. Rf2 {[%clk 00:03:06]}
{[%emt 00:02:03]} Ne4 {[%clk 00:06:46]} {[%emt 00:00:16]} 33. Bxe4 {[%clk
00:02:19]} {[%emt 00:01:16]} Rxe4 {[%clk 00:07:13]} {[%emt 00:00:03]} 34. Qd1
{[%clk 00:01:52]} {[%emt 00:00:57]} Qh6 {[%clk 00:06:45]} {[%emt 00:00:58]} 35.
Ba5 {[%clk 00:00:41]} {[%emt 00:01:41]} Rg8 {[%clk 00:06:06]} {[%emt 00:01:09]}
36. Bc7 {[%clk 00:00:55]} {[%emt 00:00:16]} Qh4 {[%clk 00:04:55]} {[%emt
00:01:41]} 37. Be5 {[%clk 00:00:38]} {[%emt 00:00:47]} g4 {[%clk 00:04:12]}
{[%emt 00:01:13]} 38. g3 {[%clk 00:00:52]} {[%emt 00:00:16]} gxh3 {[%clk
00:04:16]} {[%emt 00:00:26]} 39. Kf1 {[%clk 00:00:31]} {[%emt 00:00:52]} Qh6
{[%clk 00:02:40]} {[%emt 00:02:06]} 40. Rh2 {[%clk 00:00:31]} {[%emt 00:00:30]}
Bg4 {[%clk 00:02:29]} {[%emt 00:00:39]} 41. Qd2 {[%clk 00:28:27]} {[%emt
00:02:35]} Bf3 {[%clk 00:30:01]} {[%emt 00:02:58]} 42. Qf2 {[%clk 00:20:17]}
{[%emt 00:08:40]} Qh5 {[%clk 00:26:45]} {[%emt 00:03:46]} 43. Kg1 {[%clk
00:20:17]} {[%emt 00:00:30]} Rg6 {[%clk 00:23:07]} {[%emt 00:04:09]} 44. b4
{[%clk 00:18:23]} {[%emt 00:02:24]} h6 {[%clk 00:15:45]} {[%emt 00:07:52]} 45.
a4 {[%clk 00:18:24]} {[%emt 00:00:29]} Kh7 {[%clk 00:15:20]} {[%emt 00:00:53]}
46. Rc1 {[%clk 00:17:46]} {[%emt 00:01:09]} Bg4 {[%clk 00:15:24]} {[%emt
00:00:27]} 47. Rh1 {[%clk 00:15:06]} {[%emt 00:03:09]} Bf3 {[%clk 00:12:05]}
{[%emt 00:03:49]} 48. Rh2 {[%clk 00:15:26]} {[%emt 00:00:10]} Qg4 {[%clk
00:07:30]} {[%emt 00:05:06]} 49. b5 {[%clk 00:13:41]} {[%emt 00:02:15]} axb5
{[%clk 00:07:41]} {[%emt 00:00:18]} 50. axb5 {[%clk 00:14:06]} {[%emt
00:00:05]} h5 {[%clk 00:07:14]} {[%emt 00:00:57]} 51. Rf1 {[%clk 00:11:58]}
{[%emt 00:02:38]} Bg2 {[%clk 00:07:17]} {[%emt 00:00:27]} 52. Rxg2 {[%clk
00:12:20]} {[%emt 00:00:08]} hxg2 {[%clk 00:07:42]} {[%emt 00:00:05]} 53. Kxg2
{[%clk 00:12:07]} {[%emt 00:00:42]} h4 {[%clk 00:07:21]} {[%emt 00:00:52]} 54.
Rh1 {[%clk 00:11:40]} {[%emt 00:00:57]} Kg8 {[%clk 00:06:48]} {[%emt 00:01:03]}
55. bxc6 {[%clk 00:10:56]} {[%emt 00:01:15]} bxc6 {[%clk 00:07:16]} {[%emt
00:00:02]} 56. Rh3 {[%clk 00:04:36]} {[%emt 00:06:49]} Rxe5 {[%clk 00:04:36]}
{[%emt 00:03:11]} 57. dxe5 {[%clk 00:05:02]} {[%emt 00:00:03]} Qe4+ {[%clk
00:04:36]} {[%emt 00:00:30]} 58. Qf3 {[%clk 00:04:10]} {[%emt 00:01:22]} Qxe5
{[%clk 00:04:54]} {[%emt 00:00:12]} 59. Rxh4 {[%clk 00:04:24]} {[%emt
00:00:17]} Qb2+ {[%clk 00:05:12]} {[%emt 00:00:11]} 60. Kh3 {[%clk 00:04:00]}
{[%emt 00:00:54]} Qxf6 {[%clk 00:05:22]} {[%emt 00:00:21]} 61. Qxf6 {[%clk
00:03:09]} {[%emt 00:01:20]} Rxf6 {[%clk 00:05:50]} {[%emt 00:00:02]} 62. e4
{[%clk 00:03:16]} {[%emt 00:00:23]} dxe4 {[%clk 00:05:33]} {[%emt 00:00:47]} 63.
Rxe4 {[%clk 00:03:42]} {[%emt 00:00:04]} Kf8 {[%clk 00:05:51]} {[%emt
00:00:13]} 64. Kg4 {[%clk 00:03:35]} {[%emt 00:00:36]} Re6 {[%clk 00:06:00]}
{[%emt 00:00:21]} 65. Ra4 {[%clk 00:03:41]} {[%emt 00:00:25]} Re8 {[%clk
00:04:01]} {[%emt 00:02:28]} 66. Kf5 {[%clk 00:03:47]} {[%emt 00:00:24]} Re3
{[%clk 00:03:44]} {[%emt 00:00:47]} 67. g4 {[%clk 00:03:38]} {[%emt 00:00:39]}
Kg7 {[%clk 00:03:50]} {[%emt 00:00:23]} 68. Ra7 {[%clk 00:03:49]} {[%emt
00:00:20]} Rc3 {[%clk 00:03:20]} {[%emt 00:01:00]} 69. Rc7 {[%clk 00:04:00]}
{[%emt 00:00:19]} Rc5+ {[%clk 00:03:40]} {[%emt 00:00:10]} 70. Kf4 {[%clk
00:04:24]} {[%emt 00:00:06]} Kf6 {[%clk 00:03:56]} {[%emt 00:00:14]} 71. Rc8
{[%clk 00:02:49]} {[%emt 00:02:05]} Rc4+ {[%clk 00:03:27]} {[%emt 00:00:59]} 72.
Ke3 {[%clk 00:01:58]} {[%emt 00:01:22]} Ke6 {[%clk 00:03:08]} {[%emt 00:00:48]}
73. Kd3 {[%clk 00:01:39]} {[%emt 00:00:49]} Rc1 {[%clk 00:02:33]} {[%emt
00:01:05]} 74. Ke4 {[%clk 00:02:03]} {[%emt 00:00:06]} Re1+ {[%clk 00:02:07]}
{[%emt 00:00:56]} 75. Kd4 {[%clk 00:01:14]} {[%emt 00:01:20]} Kd7 {[%clk
00:02:14]} {[%emt 00:00:22]} 76. Rf8 {[%clk 00:01:35]} {[%emt 00:00:09]} Ke7
{[%clk 00:02:17]} {[%emt 00:00:27]} 77. Rc8 {[%clk 00:01:56]} {[%emt 00:00:09]}
Re6 {[%clk 00:02:24]} {[%emt 00:00:23]} 78. g5 {[%clk 00:01:37]} {[%emt
00:00:50]} Rg6 {[%clk 00:01:04]} {[%emt 00:01:49]} 79. Rc7+ {[%clk 00:01:50]}
{[%emt 00:00:18]} Kf8 {[%clk 00:01:20]} {[%emt 00:00:14]} 80. Ke4 {[%clk
00:02:11]} {[%emt 00:00:09]} Kg7 {[%clk 00:01:39]} {[%emt 00:00:10]} 81. Kf5
{[%clk 00:02:07]} {[%emt 00:00:34]} Rd6 {[%clk 00:02:01]} {[%emt 00:00:08]} 82.
Rc8 {[%clk 00:01:56]} {[%emt 00:00:41]} Rd5+ {[%clk 00:02:04]} {[%emt
00:00:27]} 83. Kf4 {[%clk 00:01:53]} {[%emt 00:00:33]} Rc5 {[%clk 00:01:56]}
{[%emt 00:00:39]} 84. Kg4 {[%clk 00:01:12]} {[%emt 00:01:10]} Rc1 {[%clk
00:01:54]} {[%emt 00:00:32]} 85. Kf5 {[%clk 00:01:33]} {[%emt 00:00:08]} Rc4
{[%clk 00:01:59]} {[%emt 00:00:26]} 86. Rd8 {[%clk 00:01:05]} {[%emt 00:00:58]}
Rc5+ {[%clk 00:01:40]} {[%emt 00:00:49]} 87. Kf4 {[%clk 00:01:31]} {[%emt
00:00:04]} Rd5 {[%clk 00:01:16]} {[%emt 00:00:54]} 88. Rc8 {[%clk 00:01:40]}
{[%emt 00:00:21]} Rc5 {[%clk 00:00:48]} {[%emt 00:00:58]} 89. Kg4 {[%clk
00:02:02]} {[%emt 00:00:08]} Rc1 {[%clk 00:01:01]} {[%emt 00:00:18]} 90. Kf5
{[%clk 00:02:17]} {[%emt 00:00:14]} Rc4 {[%clk 00:01:11]} {[%emt 00:00:21]} 91.
Rd8 {[%clk 00:02:36]} {[%emt 00:00:11]} c5 {[%clk 00:01:19]} {[%emt 00:00:21]}
92. Rc8 {[%clk 00:02:33]} {[%emt 00:00:33]} Rc1 {[%clk 00:01:23]} {[%emt
00:00:26]} 93. Rc7 {[%clk 00:02:56]} {[%emt 00:00:08]} c4 {[%clk 00:01:23]}
{[%emt 00:00:28]} 94. g6 {[%clk 00:01:26]} {[%emt 00:02:01]} Rf1+ {[%clk
00:00:47]} {[%emt 00:01:06]} 95. Ke4 {[%clk 00:01:43]} {[%emt 00:00:13]} Kxg6
{[%clk 00:00:43]} {[%emt 00:00:34]} 96. Rxc4 {[%clk 00:02:09]} {[%emt
00:00:04]} Kg5 {[%clk 00:00:57]} {[%emt 00:00:16]} 97. Ke3 {[%clk 00:02:36]}
{[%emt 00:00:04]} f6 {[%clk 00:00:53]} {[%emt 00:00:34]} 98. Ke2 {[%clk
00:03:01]} {[%emt 00:00:04]} Rf4 {[%clk 00:01:11]} {[%emt 00:00:12]} 99. Rc3
{[%clk 00:03:08]} {[%emt 00:00:24]} Kg4 {[%clk 00:01:26]} {[%emt 00:00:14]} 100.
Rb3 {[%clk 00:03:25]} {[%emt 00:00:13]} f5 {[%clk 00:01:22]} {[%emt 00:00:34]}
101. Ra3 {[%clk 00:03:50]} {[%emt 00:00:06]} Rb4 {[%clk 00:01:22]} {[%emt
00:00:29]} 102. Kf2 {[%clk 00:04:11]} {[%emt 00:00:08]} Rb2+ {[%clk 00:01:21]}
{[%emt 00:00:31]} 103. Kf1 {[%clk 00:04:33]} {[%emt 00:00:08]} f4 {[%clk
00:01:08]} {[%emt 00:00:44]} 104. Rc3 {[%clk 00:05:00]} {[%emt 00:00:03]} Ra2
{[%clk 00:01:13]} {[%emt 00:00:26]} 105. Rb3 {[%clk 00:05:25]} {[%emt
00:00:04]} Rh2 {[%clk 00:01:01]} {[%emt 00:00:41]} 106. Ra3 {[%clk 00:05:46]}
{[%emt 00:00:10]} Rc2 {[%clk 00:01:05]} {[%emt 00:00:26]} 107. Rb3 {[%clk
00:06:12]} {[%emt 00:00:04]} Rc4 {[%clk 00:01:23]} {[%emt 00:00:12]} 108. Kf2
{[%clk 00:06:13]} {[%emt 00:00:28]} Kf5 {[%clk 00:01:24]} {[%emt 00:00:30]} 109.
Kf3 {[%clk 00:06:18]} {[%emt 00:00:25]} Rc5 {[%clk 00:01:30]} {[%emt 00:00:24]}
110. Ra3 {[%clk 00:06:34]} {[%emt 00:00:13]} Re5 {[%clk 00:01:46]} {[%emt
00:00:14]} 111. Rb3 {[%clk 00:06:57]} {[%emt 00:00:07]} Kg5 {[%clk 00:02:03]}
{[%emt 00:00:12]} 112. Ra3 {[%clk 00:07:19]} {[%emt 00:00:09]} Re3+ {[%emt
00:00:05]} 1/2-1/2

[Event "Masters Tournament (MTO)"]
[Site "Biel, Switzerland"]
[Date "2026.07.21"]
[Round "8.16"]
[White "Arsenie, Cristian Marc"]
[Black "Cervelli, Eduard"]
[Result "1-0"]
[TimeControl "100+30+30sec/move"]
[WhiteTitle "-"]
[BlackTitle "-"]
[WhiteFideId "1345923"]
[BlackFideId "1351800"]
[WhiteElo "2300"]
[BlackElo "2197"]

1. e4 {[%clk 01:40:59]} {[%emt 00:09:13]} c5 {[%clk 01:40:04]} {[%emt
00:00:54]} 2. Nf3 {[%clk 01:41:24]} {[%emt 00:00:06]} d6 {[%clk 01:40:04]}
{[%emt 00:00:30]} 3. d4 {[%clk 01:41:49]} {[%emt 00:00:05]} cxd4 {[%clk
01:40:26]} {[%emt 00:00:07]} 4. Nxd4 {[%clk 01:42:15]} {[%emt 00:00:05]} Nf6
{[%clk 01:40:48]} {[%emt 00:00:07]} 5. Nc3 {[%clk 01:42:42]} {[%emt 00:00:04]}
a6 {[%clk 01:41:11]} {[%emt 00:00:07]} 6. Be3 {[%clk 01:43:07]} {[%emt
00:00:04]} e5 {[%clk 01:41:03]} {[%emt 00:00:38]} 7. Nb3 {[%clk 01:43:32]}
{[%emt 00:00:06]} Be7 {[%clk 01:41:16]} {[%emt 00:00:16]} 8. Be2 {[%clk
01:43:56]} {[%emt 00:00:06]} Be6 {[%clk 01:40:04]} {[%emt 00:01:42]} 9. O-O
{[%clk 01:44:18]} {[%emt 00:00:08]} O-O {[%clk 01:39:25]} {[%emt 00:01:09]} 10.
Re1 {[%clk 01:44:42]} {[%emt 00:00:07]} Nbd7 {[%clk 01:34:01]} {[%emt
00:05:53]} 11. a4 {[%clk 01:44:11]} {[%emt 00:01:02]} Rc8 {[%clk 01:31:23]}
{[%emt 00:03:07]} 12. a5 {[%clk 01:44:22]} {[%emt 00:00:20]} Rxc3 {[%clk
01:16:00]} {[%emt 00:15:53]} 13. bxc3 {[%clk 01:44:40]} {[%emt 00:00:12]} Nxe4
{[%clk 01:16:20]} {[%emt 00:00:09]} 14. Qd3 {[%clk 01:45:05]} {[%emt 00:00:05]}
f5 {[%clk 01:16:13]} {[%emt 00:00:36]} 15. c4 {[%clk 01:45:15]} {[%emt
00:00:21]} Qc7 {[%clk 01:13:13]} {[%emt 00:03:30]} 16. Red1 {[%clk 01:42:07]}
{[%emt 00:03:38]} Rc8 {[%clk 01:04:17]} {[%emt 00:09:25]} 17. Nd2 {[%clk
01:41:45]} {[%emt 00:00:52]} Ndc5 {[%clk 00:45:37]} {[%emt 00:19:11]} 18. Qa3
{[%clk 01:30:09]} {[%emt 00:12:07]} Nxd2 {[%clk 00:38:15]} {[%emt 00:07:51]} 19.
Bxd2 {[%clk 01:28:50]} {[%emt 00:01:50]} Ne4 {[%clk 00:38:10]} {[%emt
00:00:34]} 20. Bb4 {[%clk 01:24:04]} {[%emt 00:05:16]} Bxc4 {[%clk 00:31:29]}
{[%emt 00:07:12]} 21. Bd3 {[%clk 01:19:04]} {[%emt 00:05:29]} Bxd3 {[%clk
00:17:08]} {[%emt 00:14:52]} 22. cxd3 {[%clk 01:18:47]} {[%emt 00:00:47]} Nc5
{[%clk 00:14:47]} {[%emt 00:02:50]} 23. Bxc5 {[%clk 01:10:25]} {[%emt
00:08:53]} dxc5 {[%clk 00:14:35]} {[%emt 00:00:42]} 24. Qb3+ {[%clk 01:08:17]}
{[%emt 00:02:38]} Kf8 {[%clk 00:10:19]} {[%emt 00:04:46]} 25. Rab1 {[%clk
00:59:06]} {[%emt 00:09:41]} Rd8 {[%clk 00:08:27]} {[%emt 00:02:21]} 26. Kf1
{[%clk 00:54:32]} {[%emt 00:05:04]} Rd4 {[%clk 00:06:06]} {[%emt 00:02:52]} 27.
Qe6 {[%clk 00:40:18]} {[%emt 00:14:44]} Qd7 {[%clk 00:03:16]} {[%emt 00:03:20]}
28. Qxe5 {[%clk 00:40:34]} {[%emt 00:00:13]} Rxd3 {[%clk 00:03:32]} {[%emt
00:00:14]} 29. Re1 {[%clk 00:40:51]} {[%emt 00:00:14]} Bd6 {[%clk 00:03:31]}
{[%emt 00:00:31]} 30. Qe2 {[%clk 00:40:26]} {[%emt 00:00:54]} Be7 {[%clk
00:03:25]} {[%emt 00:00:36]} 31. Rxb7 {[%clk 00:39:44]} {[%emt 00:01:13]} Qxb7
{[%clk 00:03:53]} {[%emt 00:00:02]} 32. Qxd3 {[%clk 00:40:06]} {[%emt
00:00:08]} g6 {[%clk 00:03:41]} {[%emt 00:00:42]} 33. Rb1 {[%clk 00:32:15]}
{[%emt 00:08:20]} Qc7 {[%clk 00:02:18]} {[%emt 00:01:53]} 34. Qxa6 {[%clk
00:31:02]} {[%emt 00:01:43]} Bd8 {[%clk 00:01:28]} {[%emt 00:01:21]} 35. Rb7
{[%clk 00:27:36]} {[%emt 00:03:55]} Qe5 {[%clk 00:01:33]} {[%emt 00:00:25]} 36.
Qc4 {[%clk 00:27:18]} {[%emt 00:00:47]} Be7 {[%clk 00:01:16]} {[%emt 00:00:49]}
37. a6 {[%clk 00:25:05]} {[%emt 00:02:43]} g5 {[%clk 00:01:29]} {[%emt
00:00:16]} 38. a7 {[%clk 00:24:01]} {[%emt 00:01:35]} Qa1+ {[%clk 00:01:53]}
{[%emt 00:00:06]} 39. Ke2 {[%clk 00:24:28]} {[%emt 00:00:03]} Qe5+ {[%clk
00:02:14]} {[%emt 00:00:07]} 40. Kd1 {[%clk 00:24:01]} {[%emt 00:00:58]} Qd6+
{[%clk 00:02:11]} {[%emt 00:00:33]} 41. Kc2 {[%clk 00:24:04]} {[%emt 00:00:27]}
1-0